bitfinex/quotes_BTCUSD_20250607
["timestamp","ask_amount","ask_price","bid_price","bid_amount"]
[1749292155778,0.00954491,105290.0,105280.0,0.96416383]
[1749292156191,0.01904212,105290.0,105280.0,0.96416383]
[1749292156409,0.01904203,105290.0,105280.0,0.96416383]
[1749292156618,0.00954482,105290.0,105280.0,0.96416383]
[1749292157043,0.00954482,105290.0,105280.0,1.5102126]
[1749292159054,4.797e-05,105290.0,105280.0,1.5102126]
[1749292161571,0.00954491,105290.0,105280.0,1.5102126]
[1749292162001,4.797e-05,105290.0,105280.0,0.58656383]
[1749292162156,0.04074473,105290.0,105280.0,0.96416383]
[1749292163382,0.05024158,105290.0,105280.0,0.96416383]
[1749292163522,0.05973852,105290.0,105280.0,0.96416383]
[1749292163728,0.05973888,105290.0,105280.0,0.96416383]
[1749292163929,0.04074473,105290.0,105280.0,0.96416383]
[1749292164132,0.05973888,105290.0,105280.0,0.96416383]
[1749292165187,0.05024167,105290.0,105280.0,0.96416383]
[1749292165383,0.05973879,105290.0,105280.0,0.96416383]
[1749292166208,0.05973879,105290.0,105280.0,0.58656383]
[1749292166443,0.04074473,105290.0,105280.0,0.96416392]
[1749292166656,0.06923618,105290.0,105280.0,0.96416328]
[1749292166859,0.069236,105290.0,105280.0,0.96416328]
[1749292167076,0.05024167,105290.0,105280.0,0.96416328]
[1749292168126,0.03514167,105290.0,105280.0,0.96416328]
[1749292168337,0.00954473,105290.0,105280.0,1.51021205]
[1749292168774,0.0285387,105290.0,105280.0,1.51021205]
[1749292169439,0.02853861,105290.0,105280.0,1.51021205]
[1749292169662,0.03803582,105290.0,105280.0,1.51021205]
[1749292169879,0.03803582,105290.0,105280.0,0.95466544]
[1749292170101,0.03803582,105290.0,105280.0,1.51021205]
[1749292170381,0.03803582,105290.0,105280.0,0.96416328]
[1749292170998,0.01904158,105290.0,105280.0,0.96416328]
[1749292171219,0.03803582,105290.0,105280.0,0.96416328]
[1749292173982,0.02853861,105290.0,105280.0,0.96416328]
[1749292174215,0.03803582,105290.0,105280.0,0.96416328]
[1749292174426,0.03803573,105290.0,105280.0,0.96416328]
[1749292175041,0.03803564,105290.0,105280.0,0.96416328]
[1749292175470,0.03803564,105290.0,105280.0,0.97946328]
[1749292177273,0.03803564,105290.0,105280.0,0.96416328]
[1749292178146,0.01904158,105290.0,105280.0,0.96416328]
[1749292178360,0.02853852,105290.0,105280.0,1.51021205]
[1749292178571,0.03803564,105290.0,105280.0,1.51021205]
[1749292178814,0.03803564,105290.0,105280.0,0.96416328]
[1749292180489,0.03803564,105290.0,105280.0,0.99666328]
[1749292181292,0.03803573,105290.0,105280.0,0.99666328]
[1749292181435,0.03803564,105290.0,105280.0,0.99666328]
[1749292181641,0.03803564,105290.0,105280.0,0.98016328]
[1749292182111,0.04753285,105290.0,105280.0,0.98016328]
[1749292183240,4.797e-05,105290.0,105280.0,0.98016328]
[1749292183518,0.02853915,105290.0,105280.0,0.98016328]
[1749292185127,0.02853915,105290.0,105280.0,0.99606328]
[1749292188711,0.01904212,105290.0,105280.0,0.99606328]
[1749292189552,0.02853951,105290.0,105280.0,0.99606328]
[1749292189766,0.01904212,105290.0,105280.0,0.99606328]
[1749292192033,0.02853951,105290.0,105280.0,0.99606328]
[1749292192881,0.01904212,105290.0,105280.0,0.99606328]
[1749292193320,0.02853951,105290.0,105280.0,0.99606328]
[1749292195209,4.797e-05,105290.0,105280.0,1.54211205]
[1749292195897,0.00954482,105290.0,105280.0,1.54211205]
[1749292198388,0.00954491,105290.0,105280.0,1.54211205]
[1749292198774,0.00954491,105290.0,105280.0,0.99606328]
[1749292198986,0.00954491,105290.0,105280.0,1.54211205]
[1749292199591,0.00954482,105290.0,105280.0,1.54211205]
[1749292200629,0.00954491,105290.0,105280.0,1.54211205]
[1749292200757,4.797e-05,105290.0,105280.0,1.54211205]
[1749292210292,4.797e-05,105290.0,105280.0,1.54199205]
[1749292214537,0.03004797,105290.0,105280.0,1.54199205]
[1749292214962,0.03954473,105290.0,105280.0,1.54199205]
[1749292215203,0.03004797,105290.0,105280.0,1.54199205]
[1749292216357,0.03004797,105290.0,105280.0,1.54191205]
[1749292216579,0.04904176,105290.0,105280.0,0.60256328]
[1749292216802,0.04904176,105290.0,105280.0,0.97996328]
[1749292217016,0.03004797,105290.0,105280.0,0.97996328]
[1749292217667,0.03004797,105290.0,105280.0,2.08706082]
[1749292218135,0.03004797,105290.0,105280.0,2.38706082]
[1749292218381,0.03004797,105290.0,105280.0,1.84101205]
[1749292218825,0.03004797,105290.0,105280.0,1.54101205]
[1749292219248,0.03004797,105290.0,105280.0,2.08706082]
[1749292228321,0.03004797,105290.0,105280.0,2.38706082]
[1749292228725,0.03004797,105290.0,105280.0,2.08706082]
[1749292229197,0.03004797,105290.0,105280.0,2.11560082]
[1749292229460,0.03004797,105290.0,105280.0,2.13014167]
[1749292233567,0.03004797,105290.0,105280.0,2.43014167]
[1749292233778,0.03004797,105290.0,105280.0,2.13014167]
[1749292235473,0.03004797,105290.0,105280.0,2.47014167]
[1749292237778,0.03004797,105290.0,105280.0,2.74386167]
[1749292238415,0.03004797,105290.0,105280.0,3.04386167]
[1749292239336,0.03004797,105290.0,105280.0,2.74386167]
[1749292240617,0.03004797,105290.0,105280.0,2.95856167]
[1749292240825,4.797e-05,105290.0,105280.0,2.95856167]
[1749292241413,4.797e-05,105290.0,105280.0,2.66944167]
[1749292241623,4.797e-05,105290.0,105280.0,2.95844167]
[1749292243414,4.797e-05,105290.0,105280.0,3.25844167]
[1749292243668,4.797e-05,105290.0,105280.0,2.95844167]
[1749292244616,0.00954473,105290.0,105280.0,2.1233929]
[1749292244830,4.797e-05,105290.0,105280.0,2.36685205]
[1749292245713,4.797e-05,105290.0,105280.0,2.91290082]
[1749292246419,0.00954473,105290.0,105280.0,1.44352328]
[1749292246628,4.797e-05,105290.0,105280.0,2.15207205]
[1749292246839,0.03194797,105290.0,105280.0,2.15207205]
[1749292247250,0.04144473,105290.0,105280.0,2.15207205]
[1749292247473,0.07194797,105290.0,105280.0,2.15207205]
[1749292248406,0.07194797,105290.0,105280.0,2.45207205]
[1749292249228,0.07194797,105290.0,105280.0,2.15207205]
[1749292249582,0.05644797,105290.0,105280.0,2.15207205]
[1749292250276,0.06594482,105290.0,105280.0,2.15207205]
[1749292250465,0.05644797,105290.0,105280.0,2.15207205]
[1749292250676,0.06594473,105290.0,105280.0,2.15207205]
[1749292251942,0.30078765,105290.0,105280.0,0.86982751]
[1749292252179,0.12033339,105290.0,105280.0,1.21844752]
[1749292252407,0.31028576,105290.0,105280.0,1.36834025]
[1749292252617,0.29129179,105290.0,105280.0,1.75499845]
[1749292252824,0.29129179,105290.0,105280.0,1.76449647]
[1749292253067,0.29129179,105290.0,105280.0,1.76449638]
[1749292253282,0.10134023,105290.0,105280.0,1.77399422]
[1749292253485,0.29129179,105290.0,105280.0,2.05499845]
[1749292253694,0.29129179,105290.0,105280.0,1.76449656]
[1749292254142,0.29129179,105290.0,105280.0,1.21844779]
[1749292254344,0.09184266,105290.0,105280.0,1.22794563]
[1749292254551,0.28179422,105290.0,105280.0,1.21844779]
[1749292255185,0.28179422,105290.0,105280.0,1.22794563]
[1749292255186,0.09184266,105290.0,105280.0,1.22794563]
[1749292256016,0.09184266,105290.0,105280.0,1.21844779]
[1749292256227,0.28179422,105290.0,105280.0,1.21844779]
[1749292256468,0.09184266,105290.0,105280.0,1.21844779]
[1749292256678,0.09184266,105290.0,105280.0,1.22794563]
[1749292258392,0.28179422,105290.0,105280.0,0.62282349]
[1749292258609,0.82784299,105290.0,105280.0,1.08998349]
[1749292258816,0.82784299,105290.0,105280.0,0.99998349]
[1749292259035,0.82784299,105290.0,105280.0,1.00948188]
[1749292259455,0.82784299,105290.0,105280.0,0.62282349]
[1749292259666,0.82784299,105290.0,105280.0,1.19945148]
[1749292260500,0.82784299,105290.0,105280.0,1.20894968]
[1749292260736,0.82784299,105290.0,105280.0,1.19945148]
[1749292261143,0.82784299,105290.0,105280.0,1.20894977]
[1749292261834,0.8088483,105290.0,105280.0,1.20894977]
[1749292262689,0.8088483,105290.0,105280.0,1.21844779]
[1749292263147,0.26279953,105290.0,105280.0,1.21844779]
[1749292263369,0.8088483,105290.0,105280.0,1.22794572]
[1749292264655,0.64738873,105290.0,105280.0,1.22794572]
[1749292264868,0.84683786,105290.0,105280.0,1.20894977]
[1749292265097,0.84683786,105290.0,105280.0,1.21844788]
[1749292265313,0.84683786,105290.0,105280.0,0.94472788]
[1749292265774,0.85612538,105290.0,105280.0,0.94472788]
[1749292266107,0.6568863,105290.0,105280.0,0.9542259]
[1749292266322,0.84683786,105290.0,105280.0,0.9542259]
[1749292269235,0.85587095,105290.0,105280.0,0.9542259]
[1749292269443,0.85587095,105290.0,105280.0,0.94472788]
[1749292269646,0.84637383,105290.0,105280.0,0.94472788]
[1749292271449,0.83687644,105290.0,105280.0,0.94472788]
[1749292272075,0.82784335,105290.0,105280.0,0.94472788]
[1749292273219,0.82784335,105290.0,105280.0,0.93522977]
[1749292273441,0.8088483,105290.0,105280.0,0.43730349]
[1749292273656,0.8088483,105290.0,105280.0,0.92573138]
[1749292274010,0.8088483,105290.0,105280.0,0.93522958]
[1749292274216,0.8088483,105290.0,105280.0,0.92573138]
[1749292274415,0.8088483,105290.0,105280.0,0.53907309]
[1749292274622,0.8088483,105290.0,105280.0,0.34910349]
[1749292274824,0.8088483,105290.0,105280.0,0.72622349]
[1749292275036,1.37267782,105290.0,105280.0,0.09450401]
[1749292275248,1.71267949,105290.0,105280.0,0.38346401]
[1749292275478,1.71268086,105290.0,105280.0,0.38346401]
[1749292275671,1.71765838,105290.0,105280.0,0.38346401]
[1749292275873,1.74211172,105290.0,105280.0,0.09450401]
[1749292276096,1.74211172,105290.0,105280.0,0.38246401]
[1749292276300,0.65001418,105290.0,105280.0,0.38246401]
[1749292276509,1.74211172,105290.0,105280.0,0.38246401]
[1749292276769,1.73544263,105290.0,105280.0,0.37946401]
[1749292276973,1.71765838,105290.0,105280.0,0.37946401]
[1749292277191,1.18981747,105290.0,105280.0,0.37946401]
[1749292277397,1.155941,105290.0,105280.0,0.37946401]
[1749292277809,1.17372525,105290.0,105280.0,0.37946401]
[1749292278231,1.155941,105290.0,105280.0,0.37946401]
[1749292278434,1.155941,105290.0,105280.0,0.09050401]
[1749292278640,1.14927191,105290.0,105280.0,0.37946401]
[1749292278848,1.17372525,105290.0,105280.0,0.37946401]
[1749292279062,1.14927191,105290.0,105280.0,0.37946401]
[1749292279263,1.16705616,105290.0,105280.0,0.37946401]
[1749292279678,1.14927191,105290.0,105280.0,0.37946401]
[1749292279886,1.16705616,105290.0,105280.0,0.37946401]
[1749292280088,1.14927191,105290.0,105280.0,0.37946401]
[1749292280313,1.17375111,105290.0,105280.0,0.37946401]
[1749292280525,1.17375111,105290.0,105280.0,0.09050401]
[1749292280719,1.15594807,105290.0,105280.0,0.37946401]
[1749292280920,1.15594808,105290.0,105280.0,0.37946401]
[1749292281126,1.17375122,105290.0,105280.0,0.37946401]
[1749292281338,1.17375123,105290.0,105280.0,0.37946401]
[1749292281938,1.17375124,105290.0,105280.0,0.37946401]
[1749292282152,6.42935908,105290.0,105280.0,0.00234401]
[1749292282348,6.45383896,105290.0,105280.0,0.00234401]
[1749292282726,6.45383904,105290.0,105280.0,0.00234401]
[1749292282931,6.45383904,105290.0,105280.0,0.29130401]
[1749292283335,6.99363507,105290.0,105280.0,0.29130401]
[1749292283570,6.97583146,105290.0,105280.0,0.29130401]
[1749292283774,6.99363643,105290.0,105280.0,0.29130401]
[1749292283978,7.0003133,105290.0,105280.0,0.00234401]
[1749292284183,7.00031341,105290.0,105280.0,0.00234401]
[1749292284618,7.07877852,105290.0,105280.0,0.00234401]
[1749292285025,7.07870512,105290.0,105280.0,0.00234401]
[1749292285230,7.09905197,105290.0,105280.0,0.00234401]
[1749292285423,7.07205635,105290.0,105280.0,0.00234401]
[1749292285641,7.07870572,105290.0,105280.0,0.00234401]
[1749292285841,7.0720563,105290.0,105280.0,0.00234401]
[1749292286000,7.10926472,105290.0,105280.0,0.00234401]
[1749292286398,7.10261531,105290.0,105280.0,0.00234401]
[1749292286601,7.08288355,105290.0,105280.0,0.00234401]
[1749292286838,7.10459871,105290.0,105280.0,0.00234401]
[1749292287038,7.10659871,105290.0,105280.0,0.00234401]
[1749292287412,7.11324588,105290.0,105280.0,0.00234401]
[1749292287618,7.09552781,105290.0,105280.0,0.00234401]
[1749292288037,7.1132458,105290.0,105280.0,0.00234401]
[1749292288278,7.11324581,105290.0,105280.0,0.00234401]
[1749292288687,7.08888355,105290.0,105280.0,0.00234401]
[1749292288900,7.09552782,105290.0,105280.0,0.00234401]
[1749292289108,7.11324585,105290.0,105280.0,0.00234401]
[1749292289310,2.06324584,105290.0,105280.0,0.00234401]
[1749292289523,7.11324584,105290.0,105280.0,0.00234401]
[1749292289731,7.11324585,105290.0,105280.0,0.00234401]
[1749292290341,7.11324686,105290.0,105280.0,0.00234401]
[1749292290543,7.12811741,105290.0,105280.0,0.00234401]
[1749292290747,7.12811742,105290.0,105280.0,0.00234401]
[1749292290865,7.12811986,105290.0,105280.0,0.00234401]
[1749292291077,7.11039935,105290.0,105280.0,0.00234401]
[1749292291289,7.12811991,105290.0,105280.0,0.00234401]
[1749292292137,7.11039945,105290.0,105280.0,0.00234401]
[1749292292531,7.12147506,105290.0,105280.0,0.00234401]
[1749292292732,7.12812038,105290.0,105280.0,0.00234401]
[1749292292936,7.12812035,105290.0,105280.0,0.00234401]
[1749292293164,7.12812039,105290.0,105280.0,0.00234401]
[1749292293367,2.07812039,105290.0,105280.0,0.00234401]
[1749292293574,7.12812039,105290.0,105280.0,0.00234401]
[1749292293994,7.1103995,105290.0,105280.0,0.00234401]
[1749292294251,0.20900563,105260.0,105250.0,0.16495702]
[1749292294466,0.78707801,105260.0,105250.0,0.45395702]
[1749292294677,0.80480385,105260.0,105250.0,0.45395702]
[1749292294901,0.80480399,105260.0,105250.0,0.45630103]
[1749292295114,0.78707801,105260.0,105250.0,0.45630103]
[1749292295324,0.80480399,105260.0,105250.0,0.45630103]
[1749292295742,0.80480399,105260.0,105250.0,0.45730103]
[1749292296160,0.78707801,105260.0,105250.0,0.38154401]
[1749292296374,0.80480399,105260.0,105250.0,0.38154401]
[1749292296576,0.78707801,105260.0,105250.0,0.38154401]
[1749292297013,0.80480399,105260.0,105250.0,0.38154401]
[1749292297627,0.80480322,105260.0,105250.0,0.38154401]
[1749292297832,0.78707801,105260.0,105250.0,0.38154401]
[1749292298037,0.80480322,105260.0,105250.0,0.00434401]
[1749292298243,0.78707801,105260.0,105250.0,0.29334401]
[1749292298451,0.80480322,105260.0,105250.0,0.29334401]
[1749292299285,1.3517963,105260.0,105250.0,0.29334401]
[1749292299418,1.35181234,105260.0,105250.0,0.29334401]
[1749292299835,1.33407109,105260.0,105250.0,0.29334401]
[1749292300041,1.35181234,105260.0,105250.0,0.29334401]
[1749292301140,1.33407109,105260.0,105250.0,0.29334401]
[1749292301350,1.35181528,105260.0,105250.0,0.29334401]
[1749292302063,1.33407109,105260.0,105250.0,0.29334401]
[1749292302288,1.35181528,105260.0,105250.0,0.29334401]
[1749292302943,1.33407109,105260.0,105250.0,0.29334401]
[1749292303581,1.35181528,105260.0,105250.0,0.29334401]
[1749292304425,1.34074678,105260.0,105250.0,0.29334401]
[1749292304637,1.33407109,105260.0,105250.0,0.29334401]
[1749292304841,1.35187295,105260.0,105250.0,0.29334401]
[1749292305044,1.35854864,105260.0,105250.0,0.29334401]
[1749292305258,1.37133008,105260.0,105250.0,0.29334401]
[1749292305476,1.35352822,105260.0,105250.0,0.29334401]
[1749292305698,1.35854864,105260.0,105250.0,0.29334401]
[1749292306141,1.30247109,105260.0,105250.0,0.29334401]
[1749292306377,1.32694911,105260.0,105250.0,0.29334401]
[1749292306584,1.3497046,105260.0,105250.0,0.29334401]
[1749292307267,1.3319024,105260.0,105250.0,0.29334401]
[1749292307672,1.32522658,105260.0,105250.0,0.29334401]
[1749292307888,1.34302878,105260.0,105250.0,0.29334401]
[1749292308095,1.3319024,105260.0,105250.0,0.29334401]
[1749292308300,1.32522658,105260.0,105250.0,0.29334401]
[1749292308517,1.3497046,105260.0,105250.0,0.29334401]
[1749292308935,1.3814046,105260.0,105250.0,0.29334401]
[1749292309373,1.37472878,105260.0,105250.0,0.29334401]
[1749292309578,1.3814046,105260.0,105250.0,0.29334401]
[1749292309785,1.35692658,105260.0,105250.0,0.29334401]
[1749292309997,1.37472878,105260.0,105250.0,0.29256271]
[1749292310230,1.3636024,105260.0,105250.0,0.29256271]
[1749292310442,1.7036024,105260.0,105250.0,0.29256271]
[1749292310654,1.72140467,105260.0,105250.0,0.29256271]
[1749292310861,1.71472883,105260.0,105250.0,0.29256271]
[1749292311095,1.72140467,105260.0,105250.0,0.29256271]
[1749292311301,1.72140468,105260.0,105250.0,0.29256271]
[1749292311510,1.68820242,105260.0,105250.0,0.29256271]
[1749292311730,1.70600468,105260.0,105250.0,0.29256271]
[1749292311933,1.68820243,105260.0,105250.0,0.29256271]
[1749292312147,1.7060047,105260.0,105250.0,0.29256271]
[1749292312580,1.70600479,105260.0,105250.0,0.29256271]
[1749292313204,0.61253957,105260.0,105250.0,0.29256271]
[1749292313414,1.67190252,105260.0,105250.0,0.29256272]
[1749292313639,1.68970503,105260.0,105250.0,0.29256272]
[1749292313820,1.66522658,105260.0,105250.0,0.29256272]
[1749292314292,1.67190252,105260.0,105250.0,0.29256272]
[1749292314514,1.71190481,105260.0,105250.0,0.29256272]
[1749292314716,1.72971343,105260.0,105250.0,0.29256272]
[1749292314960,1.71190481,105260.0,105250.0,0.29256272]
[1749292315167,1.72971343,105260.0,105250.0,0.29256272]
[1749292315347,1.71190481,105260.0,105250.0,0.29256272]
[1749292315586,1.72971343,105260.0,105250.0,0.29256272]
[1749292315797,1.74752205,105260.0,105250.0,0.29256272]
[1749292316428,1.7230352,105260.0,105250.0,0.29256272]
[1749292316632,1.7381352,105260.0,105250.0,0.29256272]
[1749292316835,1.762625,105260.0,105250.0,0.29256273]
[1749292317043,1.7381352,105260.0,105250.0,0.29256273]
[1749292317248,1.762625,105260.0,105250.0,0.29256273]
[1749292317456,1.74481423,105260.0,105250.0,0.29256273]
[1749292317677,1.7545352,105260.0,105250.0,0.29256273]
[1749292317899,1.779025,105260.0,105250.0,0.29256273]
[1749292318108,1.77234597,105260.0,105250.0,0.29256273]
[1749292318515,1.7545352,105260.0,105250.0,0.29256273]
[1749292318720,1.779025,105260.0,105250.0,0.29256273]
[1749292318934,1.75594597,105260.0,105250.0,0.29256273]
[1749292319550,1.74481423,105260.0,105250.0,0.29256273]
[1749292319757,1.762625,105260.0,105250.0,0.29256273]
[1749292319960,1.74481423,105260.0,105250.0,0.29256273]
[1749292320170,1.7230352,105260.0,105250.0,0.29256273]
[1749292320388,0.62956974,105260.0,105250.0,0.29256273]
[1749292320607,1.72971599,105260.0,105250.0,0.29256273]
[1749292320821,1.16022729,105260.0,105250.0,0.32346274]
[1749292321039,1.18303276,105260.0,105250.0,0.32346274]
[1749292321223,1.71809405,105260.0,105250.0,0.32346274]
[1749292321468,1.70027971,105260.0,105250.0,0.32346275]
[1749292321706,1.17136107,105260.0,105250.0,0.32346275]
[1749292321921,1.17804135,105260.0,105250.0,0.32346275]
[1749292322336,1.17136107,105260.0,105250.0,0.32346275]
[1749292322594,1.17804064,105260.0,105250.0,0.32346275]
[1749292323011,1.16022655,105260.0,105250.0,0.32346275]
[1749292323232,1.17803875,105260.0,105250.0,0.32346275]
[1749292323412,1.16022655,105260.0,105250.0,0.32346275]
[1749292323658,1.7069608,105260.0,105250.0,0.32346276]
[1749292323878,1.72477704,105260.0,105250.0,0.32346276]
[1749292324082,1.7069608,105260.0,105250.0,0.32346276]
[1749292324296,1.72477704,105260.0,105250.0,0.32346276]
[1749292325126,1.7069608,105260.0,105250.0,0.32346276]
[1749292325536,1.72477704,105260.0,105250.0,0.32346276]
[1749292325762,1.7069608,105260.0,105250.0,0.32346276]
[1749292325972,1.72477704,105260.0,105250.0,0.32346276]
[1749292326182,1.70027971,105260.0,105250.0,0.32346276]
[1749292326394,1.7069608,105260.0,105250.0,0.32346277]
[1749292326638,1.72477704,105260.0,105250.0,0.32346277]
[1749292326816,1.7069608,105260.0,105250.0,0.32346277]
[1749292327059,1.71809595,105260.0,105250.0,0.32346277]
[1749292327271,1.7069608,105260.0,105250.0,0.32346277]
[1749292327481,1.70027971,105260.0,105250.0,0.32346277]
[1749292327920,1.72477565,105260.0,105250.0,0.32346277]
[1749292328558,1.72477529,105260.0,105250.0,0.32346277]
[1749292328777,1.70696032,105260.0,105250.0,0.03446277]
[1749292328989,1.72976543,105260.0,105250.0,0.32342277]
[1749292329193,1.74758084,105260.0,105250.0,0.32342277]
[1749292329431,1.74090021,105260.0,105250.0,0.32342277]
[1749292329640,1.74758107,105260.0,105250.0,0.32342278]
[1749292330091,1.72976543,105260.0,105250.0,0.32342278]
[1749292330343,1.74758107,105260.0,105250.0,0.32342278]
[1749292330558,1.74090021,105260.0,105250.0,0.32342278]
[1749292331200,1.72308457,105260.0,105250.0,0.32342278]
[1749292331407,1.74757953,105260.0,105250.0,0.32342278]
[1749292332057,1.72308457,105260.0,105250.0,0.32342278]
[1749292332267,1.72976501,105260.0,105250.0,0.32342278]
[1749292332683,1.74089909,105260.0,105250.0,0.32342278]
[1749292332931,1.72976501,105260.0,105250.0,0.32342278]
[1749292333141,1.74757957,105260.0,105250.0,0.32342278]
[1749292333578,1.74757958,105260.0,105250.0,0.32342278]
[1749292333766,1.72308457,105260.0,105250.0,0.32342278]
[1749292333969,1.71809427,105260.0,105250.0,0.32342278]
[1749292334201,1.71809301,105260.0,105250.0,0.29252279]
[1749292334410,1.72477299,105260.0,105250.0,0.29252279]
[1749292334605,1.72477299,105260.0,105250.0,0.00356279]
[1749292334853,1.724773,105260.0,105250.0,0.29252279]
[1749292335059,1.74757787,105260.0,105250.0,0.29252279]
[1749292335268,1.72976457,105260.0,105250.0,0.29252279]
[1749292335485,1.74757788,105260.0,105250.0,0.29252279]
[1749292335689,1.72477301,105260.0,105250.0,0.29252279]
[1749292336099,1.70695927,105260.0,105250.0,0.29252279]
[1749292336272,1.72477144,105260.0,105250.0,0.29252279]
[1749292336610,1.70695927,105260.0,105250.0,0.29252279]
[1749292336780,1.70027971,105260.0,105250.0,0.29252279]
[1749292337036,1.74757585,105260.0,105250.0,0.29252279]
[1749292337158,1.74757585,105260.0,105250.0,0.00356279]
[1749292337371,1.74089633,105260.0,105250.0,0.29248279]
[1749292337570,2.50905666,105260.0,105250.0,0.2924828]
[1749292337812,1.87260429,105260.0,105250.0,0.2924828]
[1749292338059,1.86592445,105260.0,105250.0,0.2924828]
[1749292338401,1.8676129,105260.0,105250.0,0.2924828]
[1749292338573,1.86760842,105260.0,105250.0,0.2924828]
[1749292338775,1.84979869,105260.0,105250.0,0.2924828]
[1749292339125,1.86092977,105260.0,105250.0,0.2924828]
[1749292339352,1.84979869,105260.0,105250.0,0.2924828]
[1749292339561,1.84312004,105260.0,105250.0,0.2924828]
[1749292339801,1.86760842,105260.0,105250.0,0.2924828]
[1749292340010,1.86760842,105260.0,105250.0,0.29248281]
[1749292340222,1.84979869,105260.0,105250.0,0.29248281]
[1749292340370,1.86760842,105260.0,105250.0,0.29248281]
[1749292340569,1.86092977,105260.0,105250.0,0.29248281]
[1749292340819,1.84979869,105260.0,105250.0,0.29248281]
[1749292341018,1.86760842,105260.0,105250.0,0.29248281]
[1749292341220,1.86092977,105260.0,105250.0,0.29248281]
[1749292341379,1.86760842,105260.0,105250.0,0.29248281]
[1749292341581,1.82732004,105260.0,105250.0,0.29248281]
[1749292341784,1.86760842,105260.0,105250.0,0.29248281]
[1749292342520,1.86760568,105260.0,105250.0,0.29248281]
[1749292342722,1.86760465,105260.0,105250.0,0.00356281]
[1749292343087,1.96400413,105260.0,105250.0,0.00356281]
[1749292343294,1.96400413,105260.0,105250.0,0.29248281]
[1749292343507,1.98680592,105260.0,105250.0,0.29248281]
[1749292343719,2.53353865,105260.0,105250.0,0.00356281]
[1749292343931,2.51573166,105260.0,105250.0,0.29248281]
[1749292344139,1.96899901,105260.0,105250.0,0.29248282]
[1749292344581,1.86592122,105260.0,105250.0,0.29248282]
[1749292344790,1.8904062,105260.0,105250.0,0.29248282]
[1749292345009,1.88372848,105260.0,105250.0,0.29248282]
[1749292345214,1.8904062,105260.0,105250.0,0.29248282]
[1749292345384,1.8585062,105260.0,105250.0,0.29248282]
[1749292345862,1.83402122,105260.0,105250.0,0.29248282]
[1749292346084,1.85182456,105260.0,105250.0,0.29248282]
[1749292346289,1.85850085,105260.0,105250.0,0.29248283]
[1749292346499,1.85182451,105260.0,105250.0,0.29248283]
[1749292346707,1.85850077,105260.0,105250.0,0.29248283]
[1749292347119,1.85850085,105260.0,105250.0,0.29248283]
[1749292347497,1.84069748,105260.0,105250.0,0.29248283]
[1749292347741,1.85850085,105260.0,105250.0,0.29248283]
[1749292347976,1.83402122,105260.0,105250.0,0.29248283]
[1749292348183,1.84069748,105260.0,105250.0,0.29248283]
[1749292348393,1.85850085,105260.0,105250.0,0.29248283]
[1749292348819,1.85182459,105260.0,105250.0,0.29248283]
[1749292349026,1.8585012,105260.0,105250.0,0.00356283]
[1749292349234,1.8585012,105260.0,105250.0,0.29248283]
[1749292349449,1.85182552,105260.0,105250.0,0.29248283]
[1749292349665,1.84069783,105260.0,105250.0,0.29248283]
[1749292349886,1.83402122,105260.0,105250.0,0.29248283]
[1749292350353,0.76503667,105260.0,105250.0,0.29248283]
[1749292350574,1.20082907,105260.0,105250.0,0.32368284]
[1749292350788,1.17135128,105260.0,105250.0,0.32368284]
[1749292351009,1.17134937,105260.0,105250.0,0.32368284]
[1749292351248,1.17134935,105260.0,105250.0,0.32368285]
[1749292351667,0.8313495,105260.0,105250.0,0.32368285]
[1749292351845,0.83134886,105260.0,105250.0,0.32368285]
[1749292352127,0.28461599,105260.0,105250.0,0.32368285]
[1749292352334,0.83134872,105260.0,105250.0,0.32368286]
[1749292352766,0.83134168,105260.0,105250.0,0.32368286]
[1749292353232,0.81354698,105260.0,105250.0,0.32368286]
[1749292353442,0.26681425,105260.0,105250.0,0.32368286]
[1749292353860,0.28460916,105260.0,105250.0,0.32368287]
[1749292354691,0.26681425,105260.0,105250.0,0.32368287]
[1749292355122,0.28460649,105260.0,105250.0,0.32368287]
[1749292355334,0.26681425,105260.0,105250.0,0.32368287]
[1749292355545,0.28460649,105260.0,105250.0,0.32368287]
[1749292356184,0.26681425,105260.0,105250.0,0.32368287]
[1749292356399,0.28460649,105260.0,105250.0,0.32368287]
[1749292357470,0.28460605,105260.0,105250.0,0.32368287]
[1749292358362,0.28460188,105260.0,105250.0,0.33318405]
[1749292358568,0.26681425,105260.0,105250.0,0.33318406]
[1749292358775,0.28460188,105260.0,105250.0,0.33318406]
[1749292359201,0.28460204,105260.0,105250.0,0.33318406]
[1749292359409,0.28460204,105260.0,105250.0,0.32368288]
[1749292359896,0.28460117,105260.0,105250.0,0.32368288]
[1749292360113,0.26681425,105260.0,105250.0,0.33318406]
[1749292360515,0.28460117,105260.0,105250.0,0.33318406]
[1749292360756,0.28460117,105260.0,105250.0,0.32368288]
[1749292361517,0.28460117,105260.0,105250.0,0.33318406]
[1749292361724,0.28460146,105260.0,105250.0,0.33318406]
[1749292362156,0.26681425,105260.0,105250.0,0.33318406]
[1749292362364,0.26681425,105260.0,105250.0,0.32368288]
[1749292362785,0.28460146,105260.0,105250.0,0.32368288]
[1749292363630,0.26681425,105260.0,105250.0,0.32368288]
[1749292363837,0.28460146,105260.0,105250.0,0.32368288]
[1749292364246,0.26681425,105260.0,105250.0,0.32368288]
[1749292364451,0.28460146,105260.0,105250.0,0.32368288]
[1749292365304,0.26681425,105260.0,105250.0,0.53270872]
[1749292365515,0.27510126,105260.0,105250.0,0.52320782]
[1749292365728,0.25731442,105260.0,105250.0,0.52320782]
[1749292365939,0.27510125,105260.0,105250.0,0.52320782]
[1749292366653,0.25731442,105260.0,105250.0,0.53270891]
[1749292366877,0.27510125,105260.0,105250.0,0.53270891]
[1749292367551,0.25731442,105260.0,105250.0,0.52320782]
[1749292368798,0.27510192,105260.0,105250.0,0.52320783]
[1749292369118,0.25731442,105260.0,105250.0,0.52320783]
[1749292369759,0.27510192,105260.0,105250.0,0.52320783]
[1749292370271,0.25731442,105260.0,105250.0,0.52320783]
[1749292370473,0.27510192,105260.0,105250.0,0.52320783]
[1749292371309,0.25731442,105260.0,105250.0,0.52320783]
[1749292371654,0.27510192,105260.0,105250.0,0.52320783]
[1749292371858,0.27510192,105260.0,105250.0,0.33318408]
[1749292372136,0.27510192,105260.0,105250.0,0.52320783]
[1749292372336,0.25731442,105260.0,105250.0,0.52320783]
[1749292372546,0.27510232,105260.0,105250.0,0.52320783]
[1749292372955,0.25731442,105260.0,105250.0,0.52320783]
[1749292373166,0.27510232,105260.0,105250.0,0.52320784]
[1749292373373,0.8216384,105260.0,105250.0,0.52320784]
[1749292374416,0.8216384,105260.0,105250.0,0.53270884]
[1749292374834,0.8038505,105260.0,105250.0,0.53270884]
[1749292375066,0.8216384,105260.0,105250.0,0.53270884]
[1749292375972,0.821647,105260.0,105250.0,0.53270884]
[1749292376614,0.821647,105260.0,105250.0,0.52320784]
[1749292376819,0.8038505,105260.0,105250.0,0.53270893]
[1749292377030,0.82164697,105260.0,105250.0,0.53270894]
[1749292377468,0.8216479,105260.0,105250.0,0.53270894]
[1749292377673,0.8038505,105260.0,105250.0,0.53270894]
[1749292377883,0.8216479,105260.0,105250.0,0.53270894]
[1749292378293,0.8216479,105260.0,105250.0,0.54220985]
[1749292378521,0.8038505,105260.0,105250.0,0.54220985]